bitfinex-derivatives/quotes_ETHF0:USTF0_20250807
["timestamp","ask_amount","ask_price","bid_price","bid_amount"]
[1754568955074,2.9648,3839.1,3839.0,0.52088]
[1754568955275,3.7812,3839.1,3839.0,4.48518]
[1754568955476,3.7812,3839.1,3839.0,2.4961]
[1754568955681,3.7812,3839.1,3839.0,0.5855]
[1754568955977,3.7812,3838.3,3838.2,4.48529]
[1754568956181,2.2461,3838.2,3838.1,0.52099]
[1754568956481,0.9853,3838.1,3838.0,4.48531]
[1754568956976,2.3515,3838.1,3838.0,4.48531]
[1754568957175,3.7812,3838.1,3838.0,4.69612107]
[1754568957379,3.7812,3838.1,3838.0,4.48531]
[1754568957576,3.7812,3838.1,3838.0,0.52101]
[1754568957781,3.7812,3837.7,3837.6,1.178]
[1754568957978,3.7812,3837.7,3837.6,1.69907]
[1754568958181,3.7812,3837.7,3837.6,1.90975504]
[1754568958377,3.7812,3837.7,3837.6,3.63197]
[1754568958579,0.52099,3838.2,3838.0,0.521]
[1754568958781,1.5351,3838.9,3838.8,0.5209]
[1754568958981,3.7812,3838.9,3838.8,0.5209]
[1754568959676,0.9853,3838.9,3838.8,1.6989]
[1754568959882,3.935,3838.9,3838.8,3.5924]
[1754568960077,3.935,3838.9,3838.8,1.1064]
[1754568960279,3.935,3838.9,3838.0,1.30253]
[1754568960280,3.3173,3838.9,3837.3,1.30275]
[1754568960482,1.5219,3838.6,3837.5,2.3738]
[1754568960682,3.0678,3838.4,3837.6,1.30267]
[1754568960879,3.9293,3838.3,3838.2,0.52098]
[1754568961077,3.9293,3838.3,3838.2,4.42918]
[1754568961273,1.5459,3838.3,3838.2,4.42918]
[1754568961578,0.9796,3838.3,3838.2,4.42918]
[1754568961981,3.9293,3838.6,3838.5,4.42914]
[1754568962284,2.4501,3838.6,3838.5,2.05534]
[1754568962483,1.30195,3839.8,3838.5,2.05534]
[1754568962484,3.9293,3839.0,3838.9,1.07819]
[1754568963085,3.9293,3839.0,3838.8,0.5209]
[1754568963282,3.9293,3838.9,3838.8,0.5209]
[1754568963485,0.9796,3838.3,3838.2,4.42919]
[1754568963684,3.9293,3838.3,3838.2,4.42919]
[1754568964084,0.5209,3838.9,3838.2,0.52099]
[1754568964284,1.4792,3838.3,3836.7,2.3738]
[1754568964482,3.9293,3838.2,3838.1,0.52099]
[1754568964783,3.9293,3838.1,3838.0,0.521]
[1754568965179,1.5459,3838.1,3837.9,0.52102]
[1754568965388,3.9293,3838.0,3837.9,0.52102]
[1754568965684,2.3834,3837.9,3837.8,0.52103]
[1754568965980,3.9293,3837.9,3837.8,4.42924]
[1754568966578,3.9293,3837.9,3837.8,2.05544]
[1754568966779,3.9293,3837.9,3837.4,2.3738]
[1754568966985,3.9293,3838.3,3838.2,0.52099]
[1754568967582,3.9293,3838.3,3838.2,3.52389]
[1754568967995,2.4501,3838.6,3838.5,2.05535]
[1754568968287,2.4501,3838.6,3838.5,4.42915]
[1754568968678,3.0251,3838.5,3838.4,0.52095]
[1754568968885,3.9293,3838.5,3837.9,2.77107]
[1754568969191,1.30218,3839.1,3838.2,1.63038]
[1754568969192,3.9293,3838.3,3838.2,1.63038]
[1754568969390,3.9293,3838.3,3838.2,2.25648]
[1754568969583,3.9293,3838.3,3838.2,3.09888]
[1754568969783,3.9293,3838.3,3838.2,4.42918]
[1754568969986,1.5459,3838.3,3838.2,4.42918]
[1754568970194,3.9293,3838.6,3838.5,2.05535]
[1754568970385,1.5459,3838.6,3838.5,4.42915]
[1754568970690,3.9293,3838.6,3838.5,1.5344]
[1754568970987,3.9293,3838.1,3838.0,1.07831]
[1754568971688,3.9293,3838.5,3838.4,2.89776]
[1754568971895,3.9293,3838.5,3838.4,4.42916]
[1754568972189,3.9293,3838.5,3838.4,3.52386]
[1754568972386,3.9293,3838.5,3838.3,0.52097]
[1754568972587,3.9293,3838.4,3838.3,0.52097]
[1754568973184,2.3834,3838.3,3838.2,0.52098]
[1754568973389,3.9293,3838.3,3838.2,0.52098]
[1754568974995,3.9293,3838.0,3837.9,2.86803]
[1754568975191,3.9293,3838.0,3837.9,2.53797804]
[1754568975391,3.9089,3838.0,3837.9,0.22204804]
[1754568975792,1.30224,3839.0,3837.9,0.22204804]
[1754568975793,1.39929638,3839.3,3838.0,1.7477]
[1754568976098,0.9042,3842.7,3842.6,0.52039]
[1754568976290,0.08413,3842.7,3842.6,0.52039]
[1754568976490,0.44083,3842.9,3842.8,0.52036]
[1754568976691,10.546,3844.8,3843.2,0.5203]
[1754568976893,0.52018,3844.2,3843.4,1.20862968]
[1754568977200,0.20965421,3844.2,3843.4,0.94801572]
[1754568977400,0.20965421,3844.2,3843.4,0.25966604]
[1754568977596,0.52014,3844.5,3843.2,0.68834968]
[1754568977797,0.8615,3843.9,3843.2,0.68834968]
[1754568977992,0.8615,3843.9,3843.3,1.2356]
[1754568978493,0.9042,3843.9,3843.5,0.52027]
[1754568978700,1.7657,3843.8,3843.7,0.1769]
[1754568978893,1.0,3844.0,3843.5,0.52026]
[1754568979198,0.6177,3848.9,3843.4,1.0822]
[1754568979400,2.59848,3847.8,3843.6,0.195]
[1754568979697,0.6177,3847.1,3844.5,0.9234]
[1754568979900,0.6177,3846.4,3845.0,0.69696]
[1754568980200,0.6177,3846.4,3845.2,0.1769]
[1754568980400,0.6177,3846.4,3845.2,1.0822]
[1754568980593,0.6177,3846.4,3845.4,1.1003]
[1754568980791,0.6177,3846.4,3845.5,0.40654242]
[1754568980990,0.6177,3846.4,3845.6,0.40641588]
[1754568981191,0.52,3845.5,3844.7,0.9053]
[1754568981390,0.9042,3844.9,3844.1,0.91779957]
[1754568981591,2.3834,3844.1,3843.8,0.68164083]
[1754568981797,2.3834,3843.9,3843.8,0.68164083]
[1754568982004,2.90363,3843.8,3843.7,0.68164083]
[1754568982194,1.30019,3845.0,3843.4,0.90876384]
[1754568982400,0.6177,3844.2,3843.3,2.1409]
[1754568982705,0.52023,3843.9,3843.3,2.1409]
[1754568983002,0.6177,3843.6,3843.3,2.1409]
[1754568983202,1.4792,3843.6,3843.3,1.6563]
[1754568983502,1.4792,3843.6,3843.4,2.1684]
[1754568983704,3.19540478,3843.5,3843.4,2.1684]
[1754568983897,3.19540478,3843.9,3843.8,0.9053]
[1754568984297,3.19540478,3843.9,3843.8,2.3099]
[1754568984504,3.19540478,3843.9,3843.8,2.97552079]
[1754568984803,3.19540478,3843.9,3843.0,2.3099]
[1754568984804,1.7657,3843.8,3843.0,2.3099]
[1754568985102,0.6177,3843.7,3843.1,0.66587804]
[1754568985300,3.81310478,3843.7,3843.2,0.66587804]
[1754568985500,2.3834,3843.5,3843.3,0.66587804]
[1754568985697,1.4792,3843.6,3843.4,2.13337804]
[1754568985900,1.4792,3843.6,3842.8,0.52035]
[1754568985901,4.67460478,3843.5,3842.8,2.83025]
[1754568986098,4.67460478,3843.5,3842.9,0.66559542]
[1754568986303,3.19540478,3843.4,3843.0,0.66559542]
[1754568986503,2.3834,3843.3,3843.1,1.57089542]
[1754568986704,2.3834,3843.3,3843.2,0.66535727]
[1754568987107,5.57880478,3843.3,3843.2,0.66535727]
[1754568987904,3.19540478,3843.3,3843.2,2.97569441]
[1754568988396,2.63408478,3843.3,3843.2,2.97569441]
[1754568988706,2.3834,3844.5,3843.3,1.30074]
[1754568988906,2.3834,3844.2,3844.1,0.52018]
[1754568989115,0.9042,3844.2,3844.1,2.13787441]
[1754568989401,2.5699,3844.2,3844.1,0.66579441]
[1754568989608,0.52026,3843.6,3843.1,0.90876384]
[1754568989802,0.7278,3843.4,3843.1,0.90876384]
[1754568990011,1.6657,3843.3,3843.2,0.52031]
[1754568990502,1.6657,3843.3,3843.1,1.19842]
[1754568990701,1.8316,3843.2,3843.1,1.19842]
[1754568990901,1.8316,3843.2,3842.9,1.2353]
[1754568990902,3.07972,3843.2,3842.9,1.2353]
[1754568991102,1.6657,3843.0,3842.9,1.2353]
[1754568991409,2.5594,3843.0,3842.9,1.2353]
[1754568991705,0.7278,3843.4,3843.1,0.52031]
[1754568991909,1.6657,3843.3,3843.1,0.52031]
[1754568992106,0.8937,3843.5,3843.3,1.19839]
[1754568992300,1.6657,3843.5,3843.3,1.19839]
[1754568992498,1.6215,3843.2,3843.1,1.45992]
[1754568992712,1.6657,3844.2,3843.4,1.30072]
[1754568992899,1.6657,3844.2,3844.1,1.19829]
[1754568993302,1.30019,3845.0,3843.1,1.30079]
[1754568993303,0.9379,3844.0,3843.2,0.6781]
[1754568993504,0.9379,3844.0,3843.3,0.36434193]
[1754568993807,1.6657,3844.8,3843.4,0.36434193]
[1754568994107,1.24794,3844.5,3843.8,0.52022]
[1754568994298,0.52014,3844.5,3843.9,0.36434193]
[1754568994609,1.6657,3844.1,3844.0,0.36434193]
[1754568994812,0.51999,3845.6,3845.1,0.52005]
[1754568995001,0.7278,3845.5,3844.5,0.52013]
[1754568995307,0.7278,3845.3,3844.7,0.52011]
[1754568995508,0.7278,3845.3,3844.9,0.52008]
[1754568995704,0.52005,3845.1,3844.8,1.2344]
[1754568995908,0.7278,3845.3,3843.9,0.90616689]
[1754568996112,38.77088,3845.9,3844.5,0.9396]
[1754568996113,37.471,3845.9,3844.5,0.9396]
[1754568996299,37.471,3845.9,3844.6,0.52012]
[1754568996300,0.7278,3845.7,3844.6,0.52012]
[1754568996707,1.8316,3845.6,3844.6,0.52012]
[1754568996909,0.52004,3845.3,3844.8,0.52009]
[1754568997115,2.5594,3845.2,3844.8,0.52009]
[1754568997310,2.5594,3845.0,3844.9,0.36474714]
[1754568998112,0.8937,3845.0,3844.9,1.63064714]
[1754568998309,0.9379,3845.4,3845.0,0.52007]
[1754568998610,0.51997,3845.8,3845.2,0.52004]
[1754568998911,40.0304,3845.9,3845.3,0.36483764]
[1754568998912,2.5594,3845.4,3845.3,0.36483764]
[1754568999206,0.8937,3845.2,3845.0,1.2659]
[1754568999411,1.6215,3845.2,3845.1,1.30443876]
[1754568999613,2.5594,3845.2,3845.1,0.36483876]
[1754568999816,2.5594,3845.2,3845.1,0.36483575]
[1754569000213,3.07944,3845.2,3845.1,0.36483575]
[1754569001114,1.6215,3845.2,3845.1,1.63073575]
[1754569001319,0.8937,3845.5,3845.1,1.23333575]
[1754569001616,0.8937,3845.4,3845.3,0.9396]
[1754569001812,1.6215,3845.4,3845.3,1.30443575]
[1754569002115,1.6215,3845.4,3845.3,1.63073575]
[1754569002703,0.8937,3845.4,3845.3,1.63073575]
[1754569002904,2.5594,3845.4,3845.3,0.36483575]
[1754569003409,2.5594,3845.4,3845.3,0.6086576]
[1754569003609,2.5594,3845.4,3845.3,1.52249979]
[1754569003814,2.5594,3845.4,3845.3,0.6086576]
[1754569004418,2.5594,3845.4,3845.3,1.98530039]
[1754569004615,2.5594,3845.4,3845.3,0.6086576]
[1754569005014,2.5594,3845.4,3845.3,0.5743591]
[1754569005909,0.7278,3845.8,3845.6,0.51998]
[1754569006227,0.7278,3845.8,3845.7,1.7111236]
[1754569006518,2.5594,3845.8,3845.7,0.33053725]
[1754569006716,37.99095,3845.9,3845.7,0.33053725]
[1754569006921,38.3647,3845.9,3845.8,0.33053725]
[1754569007115,40.0304,3845.9,3845.8,0.33053725]
[1754569007315,40.0304,3845.9,3845.8,1.79009725]
[1754569007516,1.6215,3846.1,3845.9,0.3263]
[1754569007716,20.439,3846.2,3846.0,2.46493725]
[1754569008015,21.3327,3846.2,3846.1,1.2659]
[1754569008219,21.3327,3846.2,3846.1,1.59771713]
[1754569008521,22.9984,3846.2,3846.1,2.97823016]
[1754569009108,0.51991,3846.3,3846.1,2.97849435]
[1754569009313,1.6215,3846.8,3846.2,2.23249435]
[1754569009513,0.51985,3846.6,3846.5,1.85934736]
[1754569009719,3.07925,3846.6,3846.5,0.33208132]
[1754569009922,2.5594,3846.6,3846.5,0.33208132]
[1754569010117,2.5594,3846.6,3846.5,2.19142868]
[1754569010323,1.6215,3846.7,3846.6,1.2659]
[1754569010524,1.6215,3846.7,3846.6,1.59798132]
[1754569010723,2.5594,3846.7,3846.6,0.33208132]
[1754569011619,2.5594,3846.5,3846.4,1.38051303]
[1754569011923,2.5594,3846.5,3846.4,1.598]
[1754569012116,20.352,3846.8,3846.6,0.9396]
[1754569012318,0.8937,3846.7,3846.6,0.6584]
[1754569012519,1.6215,3846.6,3846.5,1.37872821]
[1754569012712,2.5594,3846.7,3846.0,1.84237877]
[1754569012913,0.51986,3846.5,3846.4,1.37810912]
[1754569013112,3.07926,3846.5,3846.4,1.37810912]
[1754569013921,3.07926,3846.5,3846.3,1.37810912]
[1754569013922,2.5594,3846.4,3846.3,1.37810912]
[1754569014512,0.52009,3845.0,3844.8,3.24994126]
[1754569014719,1.5222,3844.9,3844.8,3.24994126]
[1754569014923,1.5222,3844.9,3844.8,0.21158708]
[1754569015319,1.5222,3845.3,3844.8,1.83508708]
[1754569015620,1.45797,3845.1,3845.0,1.6235]
[1754569015816,2.04227,3845.1,3845.0,0.21158708]
[1754569016222,21.8472,3845.1,3845.0,1.08008708]
[1754569016519,1.5222,3845.1,3845.0,0.21158708]
[1754569016823,21.8422,3845.1,3845.0,1.08008708]
[1754569017023,21.8422,3845.1,3845.0,0.8685]
[1754569017226,21.8422,3845.1,3845.0,1.08021206]
[1754569017520,21.8462,3845.1,3845.0,1.08021206]
[1754569017726,21.2449,3845.2,3845.1,0.8685]
[1754569018026,21.8292,3845.2,3845.1,0.21171882]
[1754569018220,22.4687,3845.2,3845.1,0.21171882]
[1754569018815,1.5222,3845.0,3844.9,0.0028]
[1754569019015,1.5222,3845.0,3844.9,1.0830877]
[1754569019424,2.1614,3845.0,3844.9,1.0830877]
[1754569019726,2.1974,3845.0,3844.9,0.2145877]
[1754569020123,2.1974,3845.0,3844.9,1.0476877]
[1754569020325,1.5582,3845.0,3844.9,1.0476877]
[1754569020726,2.1974,3845.0,3844.6,0.8331]
[1754569020916,2.07831,3844.8,3844.7,0.8331]
[1754569021122,1.5582,3844.1,3844.0,0.8331]
[1754569021322,21.8132,3844.1,3844.0,1.04499095]
[1754569021524,22.4524,3844.1,3844.0,0.21189095]
[1754569021723,22.4524,3844.1,3843.2,0.8331]
[1754569021724,1.30054,3844.0,3843.2,0.8331]
[1754569022022,0.52029,3843.5,3843.1,0.8331]
[1754569022326,0.52029,3843.5,3842.4,1.30105]
[1754569022327,20.259,3843.4,3843.3,2.5786]
[1754569022527,20.247,3843.4,3843.3,1.7455]
[1754569022918,0.52044,3842.4,3842.0,0.52048]
[1754569023116,1.3463,3842.3,3842.1,0.7321]
[1754569023329,1.3463,3842.3,3842.2,2.5786]
[1754569023629,0.3954,3842.3,3841.8,0.8331]
[1754569023833,1.3463,3841.8,3841.7,0.8331]
[1754569024028,21.5733,3841.8,3841.7,0.8331]
[1754569024221,21.5733,3841.8,3840.9,1.77036812]
[1754569024222,1.30136,3841.6,3840.9,1.77036812]
[1754569024428,1.86691,3841.1,3841.0,0.8331]
[1754569025027,1.0346,3841.0,3840.9,0.93726812]
[1754569025224,0.9509,3841.0,3840.9,0.93726812]
[1754569026431,0.9509,3841.0,3840.9,1.77036812]
[1754569026827,0.9509,3841.0,3840.9,0.93726812]
[1754569027129,20.242,3841.0,3840.9,1.77036812]
[1754569027320,20.242,3841.0,3840.9,3.51586812]
[1754569027726,0.9509,3841.0,3840.9,1.77036812]
[1754569027932,21.68052,3841.0,3840.9,0.93726812]
[1754569028839,0.9509,3840.9,3839.9,0.8331]
[1754569029139,1.30163,3840.8,3839.5,1.53422]
[1754569029337,0.9509,3840.1,3840.0,0.8331]
[1754569029543,20.201,3840.1,3840.0,2.5786]
[1754569030542,21.1519,3840.1,3840.0,0.8331]
[1754569030740,0.52076,3840.0,3839.5,1.7455]
[1754569031041,0.52079,3839.9,3839.3,0.52085]
[1754569031230,20.186,3840.1,3839.4,0.8331]
[1754569031231,0.5208,3839.7,3839.4,0.8331]
[1754569031436,0.5208,3839.7,3839.1,0.52087]
[1754569031644,20.186,3840.1,3839.3,0.52085]
[1754569031837,0.52076,3840.0,3839.5,0.7321]
[1754569032034,0.52077,3840.0,3839.6,1.7455]
[1754569032337,20.67977,3839.9,3839.7,0.8331]
[1754569032534,20.67977,3839.9,3839.8,2.5786]
[1754569032736,21.1099,3839.9,3839.8,0.8331]
[1754569032937,20.159,3839.9,3839.8,2.5786]
[1754569033539,21.1099,3839.9,3839.8,2.5786]
[1754569034034,0.52087,3839.3,3838.9,0.5209]
[1754569034232,0.52085,3839.4,3839.0,0.52088]
[1754569034438,0.52081,3839.7,3839.0,2.5786]
[1754569034634,20.159,3839.9,3839.5,0.52081]
[1754569034835,0.5208,3839.8,3839.6,2.5786]
[1754569035032,0.9509,3839.7,3839.0,1.5652]
[1754569035239,0.52088,3839.2,3839.1,0.8331]
[1754569035440,0.52088,3839.2,3839.1,2.5786]
[1754569035942,1.47178,3839.2,3839.1,2.5786]
[1754569036343,1.47178,3839.2,3839.1,0.8331]
[1754569036935,20.62388,3839.2,3839.1,2.5786]
[1754569037538,22.35609,3839.2,3838.5,0.8331]
[1754569037732,22.35609,3839.2,3838.3,1.0134]
[1754569037733,20.103,3839.2,3837.8,1.30263]
[1754569037932,20.103,3839.2,3838.2,1.8465]
[1754569038138,1.30221,3839.1,3838.3,1.25308]
[1754569038338,0.52096,3838.6,3838.5,1.7455]
[1754569038645,20.103,3838.9,3838.8,2.5786]
[1754569039246,38.4389,3840.2,3839.0,2.5786]
[1754569039445,0.5208,3839.7,3839.4,0.52083]
[1754569039744,0.52084,3839.5,3839.4,2.5786]
[1754569040541,20.096,3840.1,3839.5,1.0134]
[1754569040737,0.52076,3840.0,3839.9,2.5786]
[1754569041640,0.52075,3840.1,3839.9,2.5786]
[1754569041841,20.078,3840.0,3839.6,0.5208]
[1754569042039,20.078,3840.0,3839.7,0.52079]
[1754569042541,37.488,3840.2,3840.0,1.35386]
[1754569042744,20.042,3840.7,3840.0,0.7321]
[1754569043045,20.042,3840.7,3840.2,2.5786]
[1754569043234,20.9929,3840.7,3840.3,1.7455]
[1754569043434,0.52073,3840.3,3840.2,1.0134]
[1754569043641,0.52081,3839.7,3839.5,0.52082]
[1754569043841,0.52081,3839.7,3839.6,2.5786]
[1754569044148,0.52079,3839.8,3839.7,2.5786]
[1754569044649,0.52078,3839.9,3839.8,1.7455]
[1754569044845,0.52078,3839.9,3839.8,2.5786]
[1754569045147,1.47164,3840.2,3840.0,1.7455]
[1754569045345,1.47164,3840.2,3840.1,0.8331]
[1754569046243,0.52066,3840.8,3840.3,0.52071]
[1754569046447,19.982,3840.7,3840.0,1.3019]
[1754569046641,19.982,3840.7,3840.6,1.7455]
[1754569046842,19.982,3840.7,3840.6,2.5786]
[1754569047240,20.9329,3840.7,3840.1,1.25284]
[1754569047442,19.968,3840.6,3840.5,0.7321]
[1754569047646,19.972,3840.6,3840.5,3.09929]
[1754569047948,0.9509,3841.3,3840.9,0.52063]
[1754569048148,0.9509,3841.3,3840.7,1.30165]
[1754569048350,19.973,3841.2,3840.9,0.52063]
[1754569048545,19.973,3841.2,3841.0,0.8331]
[1754569048852,19.973,3841.2,3841.1,2.5786]
[1754569049245,20.9161,3841.2,3841.1,2.5786]
[1754569049444,20.9161,3841.2,3841.1,1.5652]
[1754569049842,20.9161,3841.2,3841.1,2.5418]
[1754569050353,21.4367,3841.2,3841.1,0.8331]
[1754569050649,21.4367,3841.2,3839.5,2.60411]
[1754569050650,0.52063,3841.0,3840.8,0.854]
[1754569050850,37.497,3841.5,3840.4,0.854]
[1754569051153,2.24456,3841.3,3840.6,0.854]
[1754569051344,0.9431,3841.2,3840.6,0.854]
[1754569051545,0.52061,3841.1,3840.6,0.854]
[1754569051744,20.8721,3841.0,3840.6,2.5751]
[1754569051946,19.929,3840.9,3840.7,0.52065]
[1754569052146,19.929,3840.9,3840.8,2.5751]
[1754569052650,38.4401,3841.5,3841.0,1.37461]
[1754569052847,0.5856313,3841.4,3841.2,2.5751]
[1754569053047,37.497,3841.5,3841.3,0.52057]
[1754569053248,0.9431,3842.3,3841.7,0.854]
[1754569053449,0.5205,3842.0,3841.8,0.854]
[1754569053650,1.4636,3842.0,3841.4,0.854]
[1754569053851,19.905,3841.9,3841.4,0.854]
[1754569054047,1.52933475,3841.8,3841.6,0.9766]
[1754569054247,19.9,3841.7,3841.6,1.7211]
[1754569054447,20.48623475,3841.7,3841.6,1.7211]
[1754569054645,20.48623475,3841.7,3840.5,1.3017]
[1754569054845,19.9,3841.7,3840.7,2.5751]
[1754569055043,0.9372,3841.5,3840.7,0.854]
[1754569055248,0.52057,3841.4,3840.7,1.37466]
[1754569055455,1.45776,3841.5,3840.9,0.9766]
[1754569055753,19.879,3841.4,3841.1,0.7445]
[1754569056150,19.879,3841.4,3841.3,0.7445]
[1754569056354,19.879,3841.4,3841.3,2.5751]
[1754569056748,20.8162,3841.4,3841.3,1.8306]
[1754569056953,20.8162,3841.4,3841.3,0.854]
[1754569057852,0.52062,3841.0,3840.9,1.8306]
[1754569058056,1.45782,3841.0,3840.9,0.854]
[1754569059455,19.852,3841.2,3840.8,0.7445]
[1754569059657,19.852,3841.2,3841.0,1.7211]
[1754569059958,19.852,3841.2,3841.1,1.8306]
[1754569060159,20.7892,3841.2,3841.1,0.854]
[1754569061158,0.9372,3841.6,3841.1,1.7211]
[1754569061358,19.873,3841.5,3841.1,0.5206]
[1754569061552,19.873,3841.5,3841.4,2.5751]
[1754569061755,0.58641809,3841.5,3841.4,2.5751]
[1754569061959,19.87,3841.5,3841.4,2.5751]
[1754569062160,20.45641809,3841.5,3841.4,2.5751]
[1754569062655,1.52361809,3841.5,3841.4,2.5751]
[1754569062860,20.8072,3841.5,3841.4,2.5751]
[1754569063057,0.9372,3841.4,3840.9,1.7211]
[1754569063262,0.5206,3841.2,3841.0,0.854]
[1754569063458,0.9372,3841.1,3841.0,0.854]
[1754569065565,0.52066,3840.8,3840.6,0.854]
[1754569065766,20.7502,3840.7,3840.6,0.854]
[1754569066759,21.27086,3840.7,3840.6,0.854]
[1754569067266,1.45792,3840.3,3840.2,0.854]
[1754569069372,0.9372,3840.2,3839.9,0.854]
[1754569069559,1.458,3839.7,3839.6,0.854]
[1754569069764,21.206,3839.7,3839.6,0.854]
[1754569070267,21.42559486,3839.7,3839.6,0.854]
[1754569070468,21.206,3839.7,3839.6,0.854]
[1754569071169,20.6852,3839.7,3839.2,0.7445]
[1754569071370,1.45801,3839.6,3839.5,2.5751]
[1754569071868,2.28198335,3839.6,3839.5,2.5751]
[1754569072060,2.28198335,3839.6,3839.5,0.854]
[1754569072766,1.76117335,3839.6,3839.2,0.854]
[1754569072960,0.9372,3839.3,3839.2,1.7211]
[1754569073161,0.82397335,3839.6,3838.1,1.30255]
[1754569073162,0.9372,3839.2,3838.1,1.30255]
[1754569073369,19.762,3839.1,3838.7,0.7445]
[1754569073569,37.496,3839.5,3838.0,1.30256]
[1754569073767,37.496,3839.5,3838.1,1.8306]
[1754569073768,0.9372,3839.3,3838.1,1.8306]
[1754569074074,1.76250848,3839.3,3838.6,0.52094]
[1754569074268,0.52087,3839.2,3838.7,1.37492]
[1754569074471,19.76,3839.1,3838.7,0.52092]
[1754569074672,20.28089,3839.1,3839.0,0.9766]
[1754569074872,21.21809,3839.1,3839.0,1.8306]
[1754569075176,21.21809,3839.1,3839.0,0.854]
[1754569075874,1.45812,3838.8,3838.7,0.854]
[1754569076174,1.45812,3838.8,3838.7,2.5751]
[1754569076879,1.45812,3838.8,3838.7,0.854]
[1754569078374,0.9372,3838.8,3838.7,2.5751]
[1754569079881,0.52093,3838.8,3838.3,0.52098]
[1754569080272,19.675,3838.7,3838.4,2.96647]
[1754569080570,19.675,3838.7,3838.5,2.4455]
[1754569080770,19.675,3838.7,3838.6,3.3015]
[1754569080977,19.675,3838.7,3838.6,4.1232]
[1754569081274,20.3006,3838.7,3838.6,3.1841]
[1754569081576,21.2088,3838.7,3838.6,4.1232]
[1754569081969,0.52089,3839.1,3837.9,0.93800076]
[1754569081970,1.5338,3839.1,3839.0,4.64409]
[1754569082176,21.1988,3839.1,3839.0,4.1232]
[1754569082570,0.52085,3839.4,3839.2,1.0599]
[1754569082766,37.496,3839.5,3839.4,2.6168]
[1754569082976,57.126,3839.5,3839.4,0.9391]
[1754569083378,58.0342,3839.5,3839.4,0.8217]
[1754569084281,58.0342,3839.5,3839.4,1.7608]
[1754569084478,58.0342,3839.5,3839.4,0.8217]
[1754569085073,58.0342,3839.5,3839.4,1.7608]
[1754569085271,58.0342,3839.5,3839.4,2.4455]
[1754569085478,57.126,3839.5,3839.4,2.4455]
[1754569085872,37.496,3839.5,3839.4,4.1232]
[1754569086072,57.082,3839.5,3839.4,4.1232]
[1754569086273,19.586,3839.5,3839.4,4.1232]
[1754569086478,1.5338,3840.4,3840.3,4.1232]
[1754569086773,1.5338,3839.8,3839.7,4.1232]
[1754569086974,21.1138,3839.8,3839.7,4.1232]
[1754569088076,21.1138,3839.8,3839.7,0.8217]
[1754569090978,2.05467,3839.2,3839.1,2.4994]
[1754569091174,21.60467,3839.2,3839.1,0.8217]
[1754569091372,0.52094,3838.7,3838.6,1.999]
[1754569091577,21.57474,3838.7,3838.6,4.1232]
[1754569091777,20.57474,3838.7,3838.6,4.1232]
[1754569091975,19.57474,3838.7,3838.6,4.1232]
[1754569092177,18.66654,3838.7,3838.6,4.1232]
[1754569092785,19.18748,3838.7,3838.6,4.1232]
[1754569092987,18.66654,3838.7,3838.6,4.1232]
[1754569093590,0.2826,3839.4,3838.7,2.4455]
[1754569093886,0.52085,3839.4,3839.3,4.1232]
[1754569094086,20.00585,3839.4,3839.3,4.1232]
[1754569095291,20.74055,3839.4,3839.3,0.8217]
[1754569095483,20.00585,3839.4,3839.3,4.1232]
[1754569095881,0.52085,3839.4,3839.3,4.1232]
[1754569096082,19.98585,3839.4,3839.3,4.1232]
[1754569097593,0.52085,3839.4,3839.3,4.1232]
[1754569097795,19.96085,3839.4,3839.3,4.1232]
[1754569098881,0.52085,3839.4,3839.3,4.1232]
[1754569099193,19.94285,3839.4,3839.3,4.1232]
[1754569099393,0.52091,3839.0,3838.9,4.1232]
[1754569099594,19.422,3839.0,3838.9,4.1232]
[1754569099893,0.52089,3839.2,3839.1,4.1232]
[1754569100093,19.92989,3839.2,3839.1,4.1232]
[1754569100693,0.52089,3839.2,3839.1,4.1232]
[1754569100991,19.91689,3839.2,3839.1,4.1232]
[1754569101990,19.396,3839.2,3839.1,4.1232]
[1754569102181,0.52087,3839.3,3839.2,4.1232]
[1754569102387,0.61195307,3840.1,3839.9,1.6777]
[1754569102587,0.52075,3840.1,3840.0,4.1232]
[1754569102891,19.91175,3840.1,3840.0,4.1232]
[1754569103388,20.64645,3840.1,3840.0,2.8207]
[1754569103592,20.64645,3840.1,3840.0,3.4385]
[1754569103787,20.64645,3840.1,3840.0,1.3978]
[1754569103989,20.64645,3840.1,3840.0,0.8217]
[1754569104295,1.25551,3839.7,3839.6,0.8217]
[1754569104490,20.63351,3839.7,3839.6,0.8217]
[1754569104686,0.52086,3839.3,3839.2,0.9391]
[1754569104993,20.34196,3839.3,3839.2,4.1232]
[1754569105488,20.62456,3839.3,3839.2,4.1232]
[1754569107288,1.30196,3839.9,3839.2,1.6777]
[1754569107487,0.97285,3840.1,3840.0,4.1232]
[1754569107689,20.30385,3840.1,3840.0,4.1232]
[1754569107891,20.92278328,3840.1,3840.0,4.1232]
[1754569108091,21.20538328,3840.1,3840.0,4.1232]
[1754569108895,1.87438328,3840.1,3840.0,3.4385]
[1754569109088,20.58745,3840.1,3840.0,3.4385]
[1754569109287,21.20638328,3840.1,3840.0,3.4385]
[1754569109487,21.20638328,3840.1,3839.6,4.1354]
[1754569109488,1.20201,3839.7,3839.6,4.1354]
[1754569109691,20.51201,3839.7,3839.6,0.8187]
[1754569110094,20.51201,3839.7,3839.6,2.3369]
[1754569110496,20.51201,3839.7,3839.6,2.8237]
[1754569110795,19.92905266,3839.7,3839.0,0.9606]